Cogmind - Beta 14 @@@ ROGUE MODE // 2024.12.09 @ 00:00:31 Player: Alien Result: Destroyed by H-88 Terminator with KE Penetrator Performance ------------- Evolutions (9) 4500 Regions Visited (12) 2400 Robots Destroyed (60) 300 Value Destroyed (1731) 1731 Prototype IDs (17) 340 Alien Tech Used (0) 0 Bonus (13) 13 TOTAL SCORE: 9284 Bonus ------- High Alert Combat Kills 43 Friendly Fire -30 Cogmind --------- Core Integrity 0/1600 Matter 260/300 Energy 54/100 System Corruption 5% Temperature Cool (0) Movement Core (200) Ox3 Location -1/Access Parts ------- > --- POWER (2) -------- (None) > --- PROPULSION (5) --- (None) > --- UTILITY (16) ----- Experimental Optical Array Advanced Signal Interpreter Advanced Terrain Scan Processor Advanced Terrain Scan Processor Core Analyzer Improved Utility Shielding Hacking Suite System Shield Improved System Shield > --- WEAPON (2) ------- Enhanced Force Lance (fused) > --- INVENTORY (5) ---- Experimental Energy Well (600) Gravity Neutralizer Long-range Sensor Array Hacking Suite Peak State ------------ > --- POWER ------------ Improved Ion Engine Quantum Reactor > --- PROPULSION ------- Impulse Thruster Array Impulse Thruster Array > --- UTILITY ---------- Experimental Energy Well Gravity Neutralizer Machine Analyzer Experimental Optical Array Long-range Sensor Array Advanced Signal Interpreter Advanced Terrain Scanner Advanced Terrain Scan Processor Advanced Terrain Scan Processor Core Analyzer Improved Reaction Control System Hacking Suite Improved Hacking Suite System Shield System Shield Improved System Shield > --- WEAPON ----------- Enhanced Force Lance > --- INVENTORY -------- Field Propulsion Array Gravity Neutralizer Long-range Sensor Array Advanced ECM Suite [Rating: 133] Favorites ----------- Power Mini Fusion Reactor Engine Light Ion Engine Power Core Backup Power VII Reactor Mini Fusion Reactor Propulsion Aluminum Leg Leg Aluminum Leg Hover Unit Backup Propulsion VII Flight Unit Cooled VTOL Module Utility System Shield Device Advanced Weight Redist. System Storage Small Storage Unit Processor Advanced Terrain Scan Processor Hackware System Shield Protection Improved Utility Shielding Weapon Medium Laser Energy Gun Medium Laser Energy Cannon Beam Cannon Ballistic Gun Enhanced Coil Gun Ballistic Cannon Light Cannon Launcher Improved Grenade Launcher Impact Weapon Power Maul Piercing Weapon Kinetic Spear Build | -11 -10 -10 -9 -9 -8 -7 -6 -5 -4 -3 -2 -1 ------- Run | Yrd Mat Min Mat Min Mat Fac Fac Fac Fac Res Res Acc Slots Evolved 18 | . . . 2 . 2 2 2 2 2 2 2 2 Power 1 | . . . . . . . . . . . 1 . Propulsion 3 | . . . . . . 1 . . . . 1 1 Utility 14 | . . . 2 . 2 1 2 2 2 2 . 1 Weapon . | . . . . . . . . . . . . . Parts Attached 140 | 6 1 5 4 . 17 17 7 1 11 33 18 20 Power 14 | 1 . 1 . . 4 2 . . 1 . 2 3 Engine 10 | 1 . 1 . . 4 2 . . . . 1 1 Core . | . . . . . . . . . . . . . Reactor 4 | . . . . . . . . . 1 . 1 2 Propulsion 34 | 2 . 2 . . 2 8 1 . 4 10 4 1 Treads . | . . . . . . . . . . . . . Leg 4 | 2 . 2 . . . . . . . . . . Wheel . | . . . . . . . . . . . . . Hover . | . . . . . . . . . . . . . Flight 30 | . . . . . 2 8 1 . 4 10 4 1 Utility 73 | 1 1 . 2 . 8 5 6 1 5 20 10 14 Device 46 | . . . 2 . 5 2 3 1 2 13 7 11 Storage 3 | 1 . . . . . . . . 1 . . 1 Processor 12 | . 1 . . . 3 2 1 . 1 3 1 . Hackware 11 | . . . . . . 1 2 . 1 4 2 1 Protection 1 | . . . . . . . . . . . . 1 Artifact . | . . . . . . . . . . . . . Weapon 19 | 2 . 2 2 . 3 2 . . 1 3 2 2 Energy Gun 3 | 2 . 1 . . . . . . . . . . Energy Cannon 4 | . . 1 2 . . . . . . . . 1 Ballistic Gun 1 | . . . . . . . . . . 1 . . Ballistic Cannon 2 | . . . . . 2 . . . . . . . Launcher 3 | . . . . . 1 1 . . . . 1 . Special Weapon . | . . . . . . . . . . . . . Impact Weapon 1 | . . . . . . 1 . . . . . . Slashing Weapon . | . . . . . . . . . . . . . Piercing Weapon 5 | . . . . . . . . . 1 2 1 1 Special Melee Weapon . | . . . . . . . . . . . . . Unidentified Prototypes 17 | . . . . . 2 3 . . 2 6 2 2 Parts Lost 54 | . . 5 . . 3 . . . 7 17 7 15 Power 5 | . . 1 . . 1 . . . . 1 . 2 Propulsion 13 | . . 2 . . . . . . 3 3 1 4 Utility 28 | . . . . . 2 . . . 3 12 4 7 Weapon 8 | . . 2 . . . . . . 1 1 2 2 Highest Loss Streak 8 | . . 3 . . 3 . . . 5 8 5 8 To Critical Strikes . | . . . . . . . . . . . . . Average Slot Usage (%) 88 | . 96 81 100 100 93 99 98 94 92 86 61 72 Engine 4 | . 14 2 11 11 8 6 6 5 . . . 2 Reactor 1 | . . . . . . . . . 4 3 3 3 Leg 7 | . 28 25 22 22 6 . . . . . . . Flight 9 | . . . . . 11 22 20 17 12 11 7 7 Device 13 | . . . 22 22 22 19 11 17 19 13 13 15 Storage 4 | . 14 14 11 11 3 . . . . 3 . . Processor 21 | . 11 14 11 11 22 30 26 23 26 22 21 23 Hackware 11 | . . . . . . 3 20 17 21 25 10 17 Energy Gun 4 | . 28 12 6 . . . . . . . . . Energy Cannon 2 | . . 11 15 22 7 . . . . . . . Launcher 1 | . . . . . 4 7 6 5 . . . . Impact Weapon 1 | . . . . . . 5 6 5 1 . . . Piercing Weapon 1 | . . . . . . . . . 4 3 1 3 Peak Build Rating 133 | 6 8 14 19 18 27 45 59 64 83 101 124 133 Average Rating 56 | 4 7 7 18 18 22 40 54 63 76 87 96 111 On Entrance 38 | . 6 8 14 18 18 26 43 59 64 61 75 106 Naked Turns . | . . . . . . . . . . . . . Heaviest Build 44 | 12 12 20 22 22 23 22 21 22 22 30 43 44 Greatest Support 44 | 20 20 20 20 20 20 22 25 25 29 32 44 44 Greatest Overweight (x) 7 | . . . 1 1 3 7 2 . 1 2 . . Average Overweight (x) . | . . . 1 1 . . . . . . . . Largest Inventory Capacity 10 | 8 8 8 8 8 8 5 5 5 10 10 5 5 Average Capacity 6 | 6 8 8 8 8 6 5 5 5 5 9 5 5 Most Carried 10 | 6 8 8 8 8 8 5 5 5 6 10 5 5 Average Carried 5 | 4 7 7 6 8 5 4 4 4 4 6 3 4 Final Capacity 10 | 8 8 8 8 8 5 5 5 5 10 5 5 5 Final Carried 8 | 6 8 8 8 8 5 5 5 5 4 5 5 4 Class Distribution -------------------- 22% | Hacker-Ninja 18% | Mutant 9% | Hacker-Scout 9% | Hacker-Mutant 7% | Scavenger-Mutant 6% | Scavenger-Sprinter 4% | Hacker-Sprinter 3% | Scout 3% | Wizard-Mutant 3% | Scavenger-Skirmisher 3% | Scavenger-Scout Dominant Class ---------------- Mutant | -10/Materials Mutant | -10/Mines Scavenger-Mutant | -9/Materials Scavenger-Mutant | -9/Mines Scavenger-Sprinter | -8/Materials Scout | -7/Factory Hacker-Scout | -6/Factory Hacker-Scout | -5/Factory Hacker-Ninja | -4/Factory Hacker-Sprinter | -3/Research Hacker-Mutant | -2/Research Hacker-Ninja | -1/Access Resources | -11 -10 -10 -9 -9 -8 -7 -6 -5 -4 -3 -2 -1 ----------- Run | Yrd Mat Min Mat Min Mat Fac Fac Fac Fac Res Res Acc Matter Collected 1917 | 231 27 221 . . 244 212 28 27 228 265 227 207 Remotely . | . . . . . . . . . . . . . Salvage Created 2021 | . 27 193 165 . 476 194 44 . 228 335 166 193 Parts 117 | . 6 9 7 . 30 9 3 . 11 22 10 10 Haulers Intercepted 5 | . . . . . 3 1 . . . . . 1 Recyclers Shooed 3 | . . . . . 2 . . . 1 . . . Parts Field Recycled . | . . . . . . . . . . . . . Retrieved Matter . | . . . . . . . . . . . . . Parts Self-Destructed . | . . . . . . . . . . . . . Prevented . | . . . . . . . . . . . . . Kills | -11 -10 -10 -9 -9 -8 -7 -6 -5 -4 -3 -2 -1 ------- Run | Yrd Mat Min Mat Min Mat Fac Fac Fac Fac Res Res Acc Combat Hostiles Destroyed 32 | . . 4 3 . 10 3 3 . . 5 3 1 Melee 5 | . . . . . . . . . . 5 . . Guns 2 | . . 1 . . . . . . . . . 1 Cannons 11 | . . 3 2 . 6 . . . . . . . AOE 13 | . . . . . 4 3 3 . . . 3 . Classes Destroyed 12 | . 1 2 1 . 5 1 . . . . 1 1 Worker 2 | . . . . . 1 . . . 1 . . . Builder 4 | . . . . . 1 1 . . 2 . . . Tunneler 1 | . . 1 . . . . . . . . . . Hauler 5 | . . . . . 3 1 . . . . . 1 Recycler 3 | . . . . . 2 . . . 1 . . . Operator 2 | . . . . . . 1 . . . . 1 . Watcher 11 | . 2 . . . 2 1 1 . . 3 1 1 Swarmer 15 | . . . . . 8 . 3 . . 4 . . Cutter 1 | . . . . . . . . . . . . 1 Grunt 9 | . . 4 . . 1 3 . . . 1 . . Sentry 4 | . . . 3 . 1 . . . . . . . Programmer 3 | . . . . . . . . . . . 3 . Best Kill Streak 9 | . 1 3 3 . 9 4 3 . 3 4 3 1 Combat Bots Only 5 | . . 2 3 . 5 3 3 . . 4 3 1 Max Kills in Single Turn 3 | . 1 1 1 . 3 1 1 . 1 1 3 1 Gunslinging . | . . . . . . . . . . . . . Exploded 3 | . . . . . 2 1 1 . . . 3 . Melee 1 | . . . . . . . . . . 1 . . Uniques/NPCs Destroyed . | . . . . . . . . . . . . . Combat | -11 -10 -10 -9 -9 -8 -7 -6 -5 -4 -3 -2 -1 -------- Run | Yrd Mat Min Mat Min Mat Fac Fac Fac Fac Res Res Acc Hostile Shots Fired 670 | . 18 34 37 . 50 3 19 28 54 154 90 183 Missed 299 | . 6 4 9 . 18 1 12 20 25 68 47 89 Damage Taken 7592 | . 149 470 371 . 360 31 112 133 483 1983 1106 2394 Core 3678 | . 45 137 86 . 72 . 52 18 141 1089 438 1600 Absorbed by Shields 33 | . . . . . . . . . 33 . . . Redirected to Shielding 99 | . . . . . . . . . . . . 99 Regen/Repaired (Parts) 11 | . . . . . . . 11 . . . . . Core Remaining (%) 75 | 100 . 27 . 78 86 100 93 98 87 16 69 . Volleys Fired 113 | . 3 24 7 . 59 4 6 . . . 3 7 Largest 2 | . 2 2 2 . 2 1 1 . . . 1 2 Hottest 120 | . 100 110 120 . 120 36 36 . . . 52 120 Shots Fired 160 | . 6 37 14 . 78 4 6 . . . 3 12 Gun 42 | . 6 25 . . . . . . . . . 11 Cannon 97 | . . 12 14 . 70 . . . . . . 1 Launcher 21 | . . . . . 8 4 6 . . . 3 . Special . | . . . . . . . . . . . . . Kinetic 27 | . . . . . 27 . . . . . . . Thermal 112 | . 6 37 14 . 43 . . . . . . 12 Explosive 21 | . . . . . 8 4 6 . . . 3 . Electromagnetic . | . . . . . . . . . . . . . Robot Hit Streak 8 | . 3 4 7 . 6 8 1 . . . 2 3 Robot Miss Streak 4 | . 1 4 1 . 4 . 4 . . . 2 3 Penetration Max . | . . . . . . . . . . . . . Secondary Targets 1 | . . 1 . . . . . . . . . . Max Gunslinging Chain 1 | . . 1 . . . . . . . . . . Shots Hit Robots 119 | . 4 19 11 . 41 9 2 . 6 13 4 10 Core Hits 77 | . 2 9 5 . 24 6 5 . 3 10 8 5 Critical Kills 2 | . . . 1 . . 1 . . . . . . Critical Parts Destroyed . | . . . . . . . . . . . . . Critical Strikes 5 | . . . 1 . . 1 . . . 1 2 . Meltdown 1 | . . . 1 . . . . . . . . . Smash 1 | . . . . . . 1 . . . . . . Impale 3 | . . . . . . . . . . 1 2 . Melee Attacks 107 | . . . . . . 13 7 . 19 49 6 13 Impact 24 | . . . . . . 13 7 . 4 . . . Slashing . | . . . . . . . . . . . . . Piercing 83 | . . . . . . . . . 15 49 6 13 Sneak Attacks 8 | . . . . . . 4 . . 3 . . 1 Combat Hostiles . | . . . . . . . . . . . . . Follow-up Attacks . | . . . . . . . . . . . . . Damage Inflicted 5067 | . 51 343 194 . 1060 818 396 . 500 679 604 422 Guns 347 | . 51 163 . . . . . . . . . 133 Cannons 1065 | . . 173 194 . 653 . . . . . . 45 Explosions 1465 | . . . . . 407 267 321 . . . 470 . Melee 2183 | . . . . . . 551 75 . 500 679 134 244 Ramming 7 | . . 7 . . . . . . . . . . Kinetic 235 | . . . . . 235 . . . . . . . Thermal 1177 | . 51 336 194 . 418 . . . . . . 178 Explosive 1465 | . . . . . 407 267 321 . . . 470 . Electromagnetic . | . . . . . . . . . . . . . Impact 751 | . . . . . . 551 75 . 125 . . . Slashing . | . . . . . . . . . . . . . Piercing 1432 | . . . . . . . . . 375 679 134 244 Highest Corruption 12 | . . . . . . 1 . . 2 12 . 5 Average Corruption 2 | . . . . . . 1 . . 1 2 . 5 Corruption Purged 1 | . . . . . . 1 . . . . . . Corruption Blocked . | . . . . . . . . . . . . . Effects 9 | . . . . . . . . . . 5 . 4 Message Errors 2 | . . . . . . . . . . 2 . . Matter Fused 1 | . . . . . . . . . . . . 1 Heat Flow Errors 2 | . . . . . . . . . . 1 . 1 Energy Discharges 1 | . . . . . . . . . . 1 . . Parts Rejected 1 | . . . . . . . . . . . . 1 Parts Fused 1 | . . . . . . . . . . . . 1 Misdirections 1 | . . . . . . . . . . 1 . . Overload Shots . | . . . . . . . . . . . . . Overflow Damage 544 | . . 7 . . 12 227 116 . 122 60 . . Projectiles 19 | . . 7 . . 12 . . . . . . . Explosions 66 | . . . . . . 3 63 . . . . . Melee 459 | . . . . . . 224 53 . 122 60 . . Knockbacks 6 | . . . . . 4 1 . . 1 . . . Impact 2 | . . . . . . 1 . . 1 . . . Kinetic 4 | . . . . . 4 . . . . . . . Secondary . | . . . . . . . . . . . . . Self-Inflicted Damage 15 | . . . . . 15 . . . . . . . Shots 1 | . . . . . 1 . . . . . . . Rammed . | . . . . . . . . . . . . . Targets Rammed 2 | . 1 1 . . . . . . . . . . Kicked 2 | . 1 1 . . . . . . . . . . Crushed . | . . . . . . . . . . . . . Highest Temperature 514 | . 39 514 . . 23 . 42 . 34 150 . 78 Average Temperature 144 | . 20 240 . . 6 . 21 . 20 73 . 39 Received Heat Transfer 1076 | . 81 264 126 . 117 18 27 27 98 156 135 27 Effects 7 | . . 7 . . . . . . . . . . Energy Bleed 2 | . . 2 . . . . . . . . . . Interference 4 | . . 4 . . . . . . . . . . Damage (core) 1 | . . 1 . . . . . . . . . . Siege Activations . | . . . . . . . . . . . . . Robots Corrupted 4 | . . . . . . 2 1 . 1 . . . Combat Hostiles . | . . . . . . . . . . . . . Parts Fried 7 | . . . . . . 4 2 . 1 . . . Impact Corruptions 14 | . . . . . . 9 2 . 3 . . . Robots Melted 1 | . . . 1 . . . . . . . . . Combat Hostiles 1 | . . . 1 . . . . . . . . . Parts Melted 8 | . 1 3 4 . . . . . . . . . Heat Transferred 2590 | . 148 851 407 . 888 . . . . . . 296 Parts Sabotaged . | . . . . . . . . . . . . . Parts Stolen . | . . . . . . . . . . . . . Parts Stripped . | . . . . . . . . . . . . . Power Chain Reactions . | . . . . . . . . . . . . . Alert | -11 -10 -10 -9 -9 -8 -7 -6 -5 -4 -3 -2 -1 ------- Run | Yrd Mat Min Mat Min Mat Fac Fac Fac Fac Res Res Acc Peak Influence 540 | . 59 65 168 65 417 539 540 331 305 423 492 433 Initial 271 | . . 8 25 65 25 189 165 271 169 36 186 177 Average 186 | . 19 34 61 65 87 399 290 323 181 223 233 305 Maximum Alert Level 2 | . . . . . 2 2 2 1 1 2 2 2 Low Security (%) 56 | 100 100 100 100 100 90 6 34 . 55 42 55 9 Level 1 36 | . . . . . 9 29 59 100 44 49 39 87 Level 2 7 | . . . . . . 64 6 . . 7 5 2 Level 3 . | . . . . . . . . . . . . . Level 4 . | . . . . . . . . . . . . . Level 5 . | . . . . . . . . . . . . . High Security . | . . . . . . . . . . . . . Max Security . | . . . . . . . . . . . . . Squads Dispatched 26 | . 1 . 1 . 1 4 2 2 2 5 3 5 Investigation 6 | . . . . . . 2 1 . 1 . . 2 Extermination 5 | . . . . . . . . . 1 2 1 1 Reinforcement 15 | . 1 . 1 . 1 2 1 2 . 3 2 2 Assault . | . . . . . . . . . . . . . Garrison . | . . . . . . . . . . . . . Intercept . | . . . . . . . . . . . . . Searches Triggered 1 | . . . . . . . . . . 1 . . Construction Impeded 1 | . . . . . 1 . . . . . . . Haulers Reinforced . | . . . . . . . . . . . . . Active Scanning Responses . | . . . . . . . . . . . . . Cargo Convoy Interrupts . | . . . . . . . . . . . . . Stealth | -11 -10 -10 -9 -9 -8 -7 -6 -5 -4 -3 -2 -1 --------- Run | Yrd Mat Min Mat Min Mat Fac Fac Fac Fac Res Res Acc Distress Signals 16 | . . . 2 . 5 . 2 . . 4 2 1 Communications Jammed . | . . . . . . . . . . . . . Distress Signals . | . . . . . . . . . . . . . Times Spotted 222 | . 7 5 12 . 25 8 18 16 11 56 30 34 Peak Tracking Total 13 | . 3 3 7 . 7 5 9 11 6 11 12 13 Tactical Retreats 37 | . . . 1 . 1 2 3 2 2 12 4 10 Traps | -11 -10 -10 -9 -9 -8 -7 -6 -5 -4 -3 -2 -1 ------- Run | Yrd Mat Min Mat Min Mat Fac Fac Fac Fac Res Res Acc Traps Triggered 11 | . . . . . . 1 3 . 5 2 . . Indirectly . | . . . . . . . . . . . . . Trap Hack Attempts . | . . . . . . . . . . . . . Triggered . | . . . . . . . . . . . . . Disarmed . | . . . . . . . . . . . . . Reprogrammed . | . . . . . . . . . . . . . Reused . | . . . . . . . . . . . . . Traps Extracted . | . . . . . . . . . . . . . Installed . | . . . . . . . . . . . . . Triggered . | . . . . . . . . . . . . . Machines | -11 -10 -10 -9 -9 -8 -7 -6 -5 -4 -3 -2 -1 ---------- Run | Yrd Mat Min Mat Min Mat Fac Fac Fac Fac Res Res Acc Machines Disabled 3 | . . . . . 3 . . . . . . . Max in Single Turn 1 | . . . . . 1 . . . . . . . Garrison Access 2 | . . . . . . . 1 . . 1 . . Machines Repaired . | . . . . . . . . . . . . . Machines Dismantled . | . . . . . . . . . . . . . Machines Sabotaged . | . . . . . . . . . . . . . Overloaded Fab Kills . | . . . . . . . . . . . . . Hacking | -11 -10 -10 -9 -9 -8 -7 -6 -5 -4 -3 -2 -1 --------- Run | Yrd Mat Min Mat Min Mat Fac Fac Fac Fac Res Res Acc Machines Accessed 46 | . 3 . 1 . 4 7 6 2 4 7 6 6 Terminals 28 | . 3 . 1 . 3 3 4 2 2 5 5 . Fabricators 2 | . . . . . . 1 . . 1 . . . Repair Stations 6 | . . . . . 1 2 1 . . 1 . 1 Recycling Units 1 | . . . . . . . . . . . . 1 Scanalyzers 3 | . . . . . . 1 . . 1 . . 1 Garrison Access 6 | . . . . . . . 1 . . 1 1 3 Total Hacks 138 | . 10 . 4 . 8 14 15 4 16 33 16 18 Successful 49 | . 4 . 2 . 2 6 8 1 9 8 2 7 Failed 89 | . 6 . 2 . 6 8 7 3 7 25 14 11 Catastrophic 22 | . 1 . . . . 3 1 1 2 6 4 4 Database Lockouts . | . . . . . . . . . . . . . Manual 44 | . 2 . 1 . 6 5 4 3 4 14 1 4 Terminals 93 | . 10 . 4 . 7 6 12 4 6 30 14 . Fabricators 4 | . . . . . . 2 . . 2 . . . Repair Stations 9 | . . . . . 1 3 2 . . 1 . 2 Recycling Units 4 | . . . . . . . . . . . . 4 Scanalyzers 16 | . . . . . . 3 . . 8 . . 5 Garrison Access 12 | . . . . . . . 1 . . 2 2 7 Terminal Hacks 27 | . 4 . 2 . 2 3 5 1 1 7 2 . Record 8 | . . . . . . 1 1 1 1 2 2 . Part Schematic 1 | . . . . . . . . . . 1 . . Open DSF 1 | . . . . . . . 1 . . . . . Level Access Points 1 | . . . . . . . . . . 1 . . Branch Access Points 3 | . 1 . 1 . 1 . . . . . . . Emergency Access Points 1 | . . . . . . . 1 . . . . . Repair Station Index 1 | . . . . . . . . . . 1 . . Garrison Index 1 | . . . . . . . . . . 1 . . Alert Level 2 | . 1 . 1 . . . . . . . . . Unreport Threat 1 | . . . . . 1 . . . . . . . Locate Traps 1 | . . . . . . . 1 . . . . . Dispatch Records 1 | . . . . . . . . . . 1 . . Security Status 1 | . . . . . . . 1 . . . . . Hauler Manifests 2 | . 1 . . . . 1 . . . . . . Zone Layout 2 | . 1 . . . . 1 . . . . . . Fabricator Hacks 2 | . . . . . . . . . 2 . . . Load Schematic 1 | . . . . . . . . . 1 . . . Build 1 | . . . . . . . . . 1 . . . Repair Station Hacks 4 | . . . . . . 1 2 . . . . 1 Scan Component 2 | . . . . . . 1 1 . . . . . Repair 1 | . . . . . . . 1 . . . . . Refit 1 | . . . . . . . . . . . . 1 Recycling Unit Hacks . | . . . . . . . . . . . . . Scanalyzer 11 | . . . . . . 1 . . 6 . . 4 Insert Component 6 | . . . . . . 1 . . 3 . . 2 Analyze 5 | . . . . . . . . . 3 . . 2 Garrison Access Hacks 2 | . . . . . . . 1 . . 1 . . Seal Access 2 | . . . . . . . 1 . . 1 . . Unauthorized Hacks 1 | . . . . . . 1 . . . . . . Terminals . | . . . . . . . . . . . . . Fabricators 1 | . . . . . . 1 . . . . . . Download 1 | . . . . . . 1 . . . . . . Repair Stations . | . . . . . . . . . . . . . Recycling Units . | . . . . . . . . . . . . . Scanalyzers . | . . . . . . . . . . . . . Garrison Access . | . . . . . . . . . . . . . Data Cores Recovered . | . . . . . . . . . . . . . Used . | . . . . . . . . . . . . . Hacking Detections 39 | . 2 . 1 . 4 6 3 1 4 6 6 6 Full Trace Events 5 | . . . . . . 1 1 . 1 . . 2 Feedback Events . | . . . . . . . . . . . . . Feedback Blocked . | . . . . . . . . . . . . . Robot Schematics Acquired . | . . . . . . . . . . . . . Robots Built . | . . . . . . . . . . . . . Authchips . | . . . . . . . . . . . . . Time . | . . . . . . . . . . . . . Total Robot Build Rating . | . . . . . . . . . . . . . Part Schematics Acquired 7 | . . . . . . 1 . . 3 1 . 2 Parts Built 1 | . . . . . . . . . 1 . . . Authchips . | . . . . . . . . . . . . . Time 67 | . . . . . . . . . 67 . . . Total Part Build Rating 4 | . . . . . . . . . 4 . . . Parts Repaired 1 | . . . . . . . 1 . . . . . Time 32 | . . . . . . . 32 . . . . . Parts Recycled . | . . . . . . . . . . . . . Recycled Matter . | . . . . . . . . . . . . . Retrieved Matter . | . . . . . . . . . . . . . Retrieved Components . | . . . . . . . . . . . . . Parts Scanalyzed 6 | . . . . . . 1 . . 3 . . 2 Part Schematics Acquired 5 | . . . . . . . . . 3 . . 2 Parts Damaged . | . . . . . . . . . . . . . Bothacking | -11 -10 -10 -9 -9 -8 -7 -6 -5 -4 -3 -2 -1 ------------ Run | Yrd Mat Min Mat Min Mat Fac Fac Fac Fac Res Res Acc Used RIF Installer . | . . . . . . . . . . . . . Robots Hacked . | . . . . . . . . . . . . . Non-combat . | . . . . . . . . . . . . . Combat . | . . . . . . . . . . . . . Robot Hacks Applied . | . . . . . . . . . . . . . Relay Couplers Released . | . . . . . . . . . . . . . Fabnet Peak Effective % . | . . . . . . . . . . . . . Robots Rewired . | . . . . . . . . . . . . . Allies Hacked . | . . . . . . . . . . . . . Hacks Repelled . | . . . . . . . . . . . . . Allies | -11 -10 -10 -9 -9 -8 -7 -6 -5 -4 -3 -2 -1 -------- Run | Yrd Mat Min Mat Min Mat Fac Fac Fac Fac Res Res Acc Total Allies . | . . . . . . . . . . . . . Largest Group . | . . . . . . . . . . . . . Highest-Rated Group . | . . . . . . . . . . . . . Highest-Rated Ally . | . . . . . . . . . . . . . Total Orders . | . . . . . . . . . . . . . Ally Attacks . | . . . . . . . . . . . . . Total Damage . | . . . . . . . . . . . . . Kills . | . . . . . . . . . . . . . Allies Corrupted . | . . . . . . . . . . . . . Allies Melted . | . . . . . . . . . . . . . Intel | -11 -10 -10 -9 -9 -8 -7 -6 -5 -4 -3 -2 -1 ------- Run | Yrd Mat Min Mat Min Mat Fac Fac Fac Fac Res Res Acc Robot Analysis Total . | . . . . . . . . . . . . . Derelict Logs Recovered 1 | . . . . 1 . . . . . . . . Drone Launches . | . . . . . . . . . . . . . Drone Recoveries . | . . . . . . . . . . . . . Exploration | -11 -10 -10 -9 -9 -8 -7 -6 -5 -4 -3 -2 -1 ------------- Run | Yrd Mat Min Mat Min Mat Fac Fac Fac Fac Res Res Acc Turns Passed 5522 | 48 738 268 259 67 588 415 309 221 663 935 430 581 Spaces Moved 6636 | 38 308 164 123 36 469 848 708 257 635 1737 492 821 Core 148 | 17 . . . . 2 41 2 . 27 2 . 57 Treads . | . . . . . . . . . . . . . Legs 706 | 21 308 164 123 36 54 . . . . . . . Wheels . | . . . . . . . . . . . . . Hover . | . . . . . . . . . . . . . Flight 5782 | . . . . . 413 807 706 257 608 1735 492 764 Fastest Speed 24 | 50 120 120 190 190 32 29 24 30 26 26 30 42 Average Speed 45 | 88 120 120 190 190 49 35 29 30 34 31 40 42 Slowest Speed 400 | 120 120 120 190 190 200 400 150 30 100 150 45 50 Overloaded Moves 439 | . . . . . . . 132 . 89 218 . . Propulsion Burnouts 1 | . . . . . . . . . . 1 . . Robots Hopped 76 | . . . . . 13 6 8 12 . 11 12 14 Cave-ins Triggered . | . . . . . . . . . . . . . Exploration Rate (%) 26 | 3 47 48 19 17 31 20 25 9 20 40 30 30 Regions Visited 12 Branch Regions 2 Pre-discovered Areas . | . . . . . . . . . . . . . Known Exits Taken 9 | . 1 . 1 . 1 1 1 1 1 1 1 . Unknown Exits Taken 3 | 1 . 1 . 1 . . . . . . . . Scrap Searched . | . . . . . . . . . . . . . Spaces Dug 46 | . . . . . . 6 6 . 8 15 3 8 Terrain Destroyed 224 | . . . . . 35 33 48 . 8 15 77 8 Melee 46 | . . . . . . 6 6 . 8 15 3 8 Projectile . | . . . . . . . . . . . . . AOE 178 | . . . . . 35 27 42 . . . 74 . Terrain Rammed . | . . . . . . . . . . . . . Walls Destroyed . | . . . . . . . . . . . . . Machines Disabled . | . . . . . . . . . . . . . Actions | -11 -10 -10 -9 -9 -8 -7 -6 -5 -4 -3 -2 -1 --------- Run | Yrd Mat Min Mat Min Mat Fac Fac Fac Fac Res Res Acc Total 8685 | 50 671 196 134 35 740 931 784 388 1047 2020 690 999 Wait 1527 | . 351 . . . 179 24 20 142 335 175 172 129 Move 6485 | 37 307 163 122 35 444 835 692 234 634 1715 472 795 Hop 63 | . . . . . 11 6 7 10 . 10 7 12 Pick Up 67 | 7 5 2 1 . 10 11 6 1 5 11 3 5 Fast Attach 88 | 5 1 4 . . 11 11 3 . 3 22 12 16 Attach 41 | 1 . 1 2 . 4 3 3 1 7 11 6 2 Detach 34 | . . . . . 5 2 3 . 2 12 5 5 Swap 12 | . . . 2 . 2 3 1 . 1 . . 3 Drop 77 | . 3 1 . . 15 19 6 . 2 15 4 12 Fire 113 | . 3 24 7 . 59 4 6 . . . 3 7 Melee 106 | . . . . . . 13 7 . 18 49 6 13 Ram . | . . . . . . . . . . . . . Kick 2 | . 1 1 . . . . . . . . . . Crush . | . . . . . . . . . . . . . Escape Stasis 70 | . . . . . . . 30 . 40 . . . Rewire . | . . . . . . . . . . . . . Trap . | . . . . . . . . . . . . . Miscellaneous . | . . . . . . . . . . . . . Route ------- -11/Scrapyard -10/Materials (discovered 2 exits: *Mat / *Min) -10/Mines -9/Materials (discovered 2 exits: *Min x2) -9/Mines -8/Materials -7/Factory -6/Factory -5/Factory -4/Factory -3/Research (discovered 3 exits: *Res x3) -2/Research -1/Access History --------- Turn | Location | Event 2 | -11/Scrapyard | Met Revision 17 8 | -11/Scrapyard | Discovered new exit (range 15) 49 | -11/Scrapyard | Entered Materials 256 | -10/Materials | Discovered new exit (range 14) 309 | -10/Materials | Build established: Mutant 764 | -10/Materials | Identified exit to Mines 787 | -10/Materials | Entered Mines 825 | -10/Mines | Core integrity fell below 50% 850 | -10/Mines | Lost 3 parts (1p1n1w) 982 | -10/Mines | Discovered new exit (range 8) 1055 | -10/Mines | Entered Materials 1055 | -9/Materials | Evolved 2 slots: Utility x2 1237 | -9/Materials | Identified exit to Mines 1314 | -9/Materials | Entered Mines 1316 | -9/Mines | Build established: Scavenger-Mutant 1321 | -9/Mines | Met a Derelict bent on vengeance 1337 | -9/Mines | Learned Materials garrison access intel 1358 | -9/Mines | Discovered new exit (range 11) 1381 | -9/Mines | Entered Materials 1381 | -8/Materials | Evolved 2 slots: Utility x2 1382 | -8/Materials | Loaded intel: 1 garrison access location 1601 | -8/Materials | Lost 3 parts (1p2u) 1893 | -8/Materials | Build established: Scavenger-Sprinter 1967 | -8/Materials | Discovered new exit (range 6) 1969 | -8/Materials | Identified exit to Factory 1969 | -8/Materials | Entered Factory 1969 | -7/Factory | Evolved 2 slots: Propulsion x1, Utility x1 2333 | -7/Factory | Discovered new exit (range 17) 2383 | -7/Factory | Identified exit to Factory 2384 | -7/Factory | Entered another Factory area 2384 | -6/Factory | Evolved 2 slots: Utility x2 2503 | -6/Factory | Repaired Weight Redist. System? 2690 | -6/Factory | Discovered new exit (range 9) 2693 | -6/Factory | Identified exit to Factory 2693 | -6/Factory | Entered another Factory area 2693 | -5/Factory | Evolved 2 slots: Utility x2 2809 | -5/Factory | Build established: Hacker-Scout 2900 | -5/Factory | Discovered new exit (range 18) 2906 | -5/Factory | Identified exit to Factory 2914 | -5/Factory | Entered another Factory area 2914 | -4/Factory | Evolved 2 slots: Utility x2 3326 | -4/Factory | Discovered new exit (range 18) 3395 | -4/Factory | Fabricated Cld. VTOL Module? 3577 | -4/Factory | Identified exit to Research 3577 | -4/Factory | Entered Research 3577 | -3/Research | Evolved 2 slots: Utility x2 3606 | -3/Research | Lost 5 parts (2n3u) 3609 | -3/Research | Identified exit to Research 3647 | -3/Research | Build established: Hacker-Ninja 4041 | -3/Research | Found Fusion Bomb Launcher 4251 | -3/Research | Spotted B-86 Titan 4327 | -3/Research | Search patrols dispatched 4339 | -3/Research | Found Prototype Device 4378 | -3/Research | Core integrity fell below 50% 4421 | -3/Research | Identified Adv. EM Disruption Field 4445 | -3/Research | Lost 8 parts (1p2n5u) 4453 | -3/Research | System corruption reached 10% 4483 | -3/Research | Lost 4 parts (1n3u) 4498 | -3/Research | Core integrity fell below 20% 4512 | -3/Research | Entered another Research area 4512 | -2/Research | Evolved 2 slots: Power x1, Propulsion x1 4579 | -2/Research | Spotted B-90 Cyclops 4641 | -2/Research | Spotted B-90 Cyclops 4649 | -2/Research | Lost 5 parts (1n3u1w) 4903 | -2/Research | Build established: Hacker-Mutant 4932 | -2/Research | Discovered new exit (range 22) 4941 | -2/Research | Identified exit to Access 4942 | -2/Research | Entered Access 4942 | -1/Access | Evolved 2 slots: Propulsion x1, Utility x1 5048 | -1/Access | Found Prototype Processor 5048 | -1/Access | Identified Exp. Core Analyzer 5292 | -1/Access | Build established: Hacker-Ninja 5471 | -1/Access | Lost 5 parts (1n4u) 5475 | -1/Access | Core integrity fell below 50% 5516 | -1/Access | Core integrity fell below 20% 5523 | -1/Access | Destroyed by H-88 Terminator with KE Penetrator Last Messages --------------- 05507_ Backup Power VII disintegrated. 05508_ Backup Propulsion VII severed. 05508_ Backup Propulsion VII disintegrated. 05509_ C-57 Dissector destroyed. 05509_ Repair Station disabled. 05512_ K-01 Serf collects debris. 05512_ Destroyed Adv. Surge Thruster. 05512_ K-01 Serf destroyed. 05515_ Destroyed Adv. Surge Thruster. 05515_ Backup Power VII destroyed. 05516_ Backup Propulsion VII severed. 05516_ Backup Propulsion VII disintegrated. 05517_ Backup Laser VII severed. 05517_ Backup Laser VII disintegrated. 05518_ Destroyed Adv. Surge Thruster. 05518_ Slug penetrates Wall. 05520_ Backup Laser VII severed. 05520_ Backup Laser VII disintegrated. 05521_ System corrupted: Enh. Force Lance fused. 05522_ Slug penetrates Wall. Map ----- +----------------------------------------------------+ | | | | | | | | | ???????????###############???????????????????????? | | ???????????# #???????????????????????? | | ###????????# #???????????????????????? | | ########## #???????????????????????? | | # + """""#???????????????????????? | | # # """""#???????????????????????? | | # # """""#???????????????????????? | | # + """""#???????????????????????? | | # #### """""#???????????????????????? | | # #??# #???????????????????????? | | # #??# #??????????????????????## | | !# #??# #???????????????????????# | | ### #??#######+####+##?????????????????????#?? | | #??????# #????????????????????????? | | #??????# #??????????????????#??#??# | | + ?????# #?????????????????????#?## | | # ???# ##+#######????????????#####?# | | # ?+ # #??????????????###?? | | """"" #? # # p #?????????#???#?#??? | | """"" #? # # l""" #????????????#??#?## | | """"" #?? # # *c "" #?????????????#####? | | """"" #?? # # c@R" #????????????####?## | | """"" #??? ? # #%* """ #????????#?#????#??? | | #???? ?# g= "" #????????#??###????# | | ] #???? # # #???????#??????##?## | | #????? # #! #???????#?####??#### | | #?????## ##########??#???#?####??#???# | | = #??????# #??????????????#?#??######### | | #??????# #???????????????#??##?##?#?## | | #??????# #?????????? ?????? ???#?##?## | | ######?# #??????????????? ?? ???????## | | " ### #???????????????? ? ??? ???# | | " #??????? ? ??? "" "" ?#???### | | G"" #???????? ?????""T"" ?#?#### | | ##+###??#+#?????""" ? ## | | ### #? ????? ?##?? #? | | #????? ???##?? ## | | ###### # # ## ### ####+###?#?####/## | | #????########## ##+###### #?# ##???# | | #?????????????# # !! ## ### ###### | | #?????????????# # / / " | | ??????????? # ###### ! # """ | | ???????? # ! ! #????# # """ | | ????? # #???## # " | | ??? # = #????# # | | # +?? # | +----------------------------------------------------+ Best States ------------- Heat Dissipation 59 Energy Generation 32 Energy Capacity 1115 Matter Stores 300 Matter Capacity 300 Sight Range 23 Robot Scan Range 18 Terrain Scan Range 20 Terrain Scan Density 410 ECM Strength 2 Power Amplification 30 Additional Mass Support 12 Utility Shielding 66 Evasion (%) 71 Core Analysis 6 Offensive Hacking 34 Defensive Hacking 52 Item Schematics ----------------- Hvy. Gauss Cannon | -7/Factory | Downloaded Cld. VTOL Module | -4/Factory | Scanalyzed Adv. Weight Redist. System | -4/Factory | Scanalyzed Hvy. Deuterium Engine | -4/Factory | Scanalyzed Adv. Sensor Array | -3/Research | Hacked Impulse Thruster Array | -1/Access | Scanalyzed Gravity Neutralizer | -1/Access | Scanalyzed Robot Schematics ------------------ None Fabricated ------------ Cld. VTOL Module | x1 | -4/Factory Alien Tech Used ----------------- None Achievements -------------- None Challenges ------------ None Game ------ Seed MetafiberVampiricMantle Manual? 0 Play Time 02:09:53 Cumulative 33.2 hours Start 2024.12.08 @ 20:11:06 End 2024.12.09 @ 00:00:31 Sessions 3 Manual Loads 0 Difficulty Rogue Special Mode None Game No. 35 Rogue 35 Adventurer 0 Explorer 0 Win Type - Total 0 Types 0/0/0/0/0/0/0/0/0 Lore% 17 Gallery% 31 Achievement% 36 Wizard Run 0 Options --------- Layout 0 ASCII 0 Keyboard 1 Movement Numpad Keybinds 0 Fullscreen 1 Font 24/Smallcaps Map View 76x56 Zoom Use 0% Tactical HUD 1 Map Filters NONE Filters NONE Steam 1 RUN: ef134558-6232-4e48-8596-1afbab068607